[Event "Titled Tuesday Blitz June 6 Late 2023"]
[White "Mendez Fortes, Eduardo Jesus"]
[Black "Smiechu"]
[WhiteFideId "3502376"]
[WhiteElo "2307"]
[BlackElo "2379"]
[Result "1-0"]
[Round "2"]
[TimeControl "180+2"]
[Date "2023.06.07"]
[WhiteClock "0:00:58"]
[BlackClock "0:00:33"]
[Board "123"]

1. e4 {[%clk 0:03:00]}  c5 {[%clk 0:02:59]} 2. Nf3 {[%clk 0:03:00]}  g6 {[%clk 0:03:00]} 3. d4 {[%clk 0:03:00]}  cxd4 {[%clk 0:03:00]} 4. Nxd4 {[%clk 0:03:01]}  Nc6 {[%clk 0:03:01]} 5. c4 {[%clk 0:03:02]}  Nf6 {[%clk 0:03:01]} 6. Nc3 {[%clk 0:03:02]}  Nxd4 {[%clk 0:03:01]} 7. Qxd4 {[%clk 0:03:02]}  d6 {[%clk 0:03:02]} 8. Be2 {[%clk 0:02:59]}  Bg7 {[%clk 0:03:02]} 9. Be3 {[%clk 0:02:59]}  O-O {[%clk 0:03:03]} 10. Qd2 {[%clk 0:03:00]}  a5 {[%clk 0:03:03]} 11. O-O {[%clk 0:02:59]}  a4 {[%clk 0:03:04]} 12. Rad1 {[%clk 0:03:00]}  Qa5 {[%clk 0:02:57]} 13. Bd4 {[%clk 0:03:00]}  Be6 {[%clk 0:02:51]} 14. f4 {[%clk 0:02:55]}  Rfc8 {[%clk 0:02:51]} 15. b3 {[%clk 0:02:55]}  axb3 {[%clk 0:02:47]} 16. axb3 {[%clk 0:02:55]}  Qb4 {[%clk 0:02:40]} 17. f5 {[%clk 0:02:42]}  Bd7 {[%clk 0:02:39]} 18. Bxf6 {[%clk 0:02:33]}  Bxf6 {[%clk 0:02:35]} 19. Nd5 {[%clk 0:02:34]}  Qxb3 {[%clk 0:02:03]} 20. Nxf6+ {[%clk 0:01:54]}  exf6 {[%clk 0:02:03]} 21. Qxd6 {[%clk 0:01:54]}  Bc6 {[%clk 0:01:57]} 22. fxg6 {[%clk 0:01:52]}  hxg6 {[%clk 0:01:49]} 23. Qxf6 {[%clk 0:01:52]}  Qb6+ {[%clk 0:01:31]} 24. Kh1 {[%clk 0:01:50]}  Qc7 {[%clk 0:01:31]} 25. Rd3 {[%clk 0:01:46]}  Bxe4 {[%clk 0:01:11]} 26. Rh3 {[%clk 0:01:43]}  Bxg2+ {[%clk 0:01:11]} 27. Kxg2 {[%clk 0:01:43]}  Qc6+ {[%clk 0:01:11]} 28. Rhf3 {[%clk 0:01:02]}  Qxf6 {[%clk 0:00:43]} 29. Rxf6 {[%clk 0:01:03]}  Ra2 {[%clk 0:00:43]} 30. R6f2 {[%clk 0:01:02]}  f5 {[%clk 0:00:42]} 31. Bf3 {[%clk 0:00:58]}  Rxf2+ {[%clk 0:00:36]} 32. Rxf2 {[%clk 0:00:59]}  Rc7 {[%clk 0:00:37]} 33. Rb2 {[%clk 0:00:59]}  Kf8 {[%clk 0:00:33]} 34. Bd5 {[%clk 0:00:58]} 1-0


[Site "https://www.chess.com"]

[Event "Titled Tuesday Blitz June 6 Late 2023"]
[White "Keleberda, Tymur"]
[Black "Prydun, Andriy"]
[WhiteFideId "14174294"]
[BlackFideId "14145898"]
[WhiteElo "2198"]
[BlackElo "2164"]
[Result "1-0"]
[Round "2"]
[TimeControl "180+2"]
[Date "2023.06.07"]
[WhiteClock "0:00:56"]
[BlackClock "0:00:09"]
[Board "129"]

1. e4 {[%clk 0:02:59]}  c5 {[%clk 0:03:00]} 2. Nf3 {[%clk 0:02:59]}  d6 {[%clk 0:03:01]} 3. d4 {[%clk 0:02:51]}  cxd4 {[%clk 0:03:02]} 4. Nxd4 {[%clk 0:02:52]}  Nf6 {[%clk 0:03:00]} 5. Nc3 {[%clk 0:02:51]}  g6 {[%clk 0:03:01]} 6. h3 {[%clk 0:02:08]}  Bg7 {[%clk 0:02:56]} 7. g4 {[%clk 0:02:07]}  Na6 {[%clk 0:01:48]} 8. Bg2 {[%clk 0:01:59]}  Nc7 {[%clk 0:01:40]} 9. O-O {[%clk 0:01:39]}  Bd7 {[%clk 0:01:07]} 10. Be3 {[%clk 0:01:33]}  e5 {[%clk 0:01:04]} 11. Nde2 {[%clk 0:01:33]}  Bc6 {[%clk 0:01:04]} 12. f4 {[%clk 0:01:27]}  Qe7 {[%clk 0:00:35]} 13. f5 {[%clk 0:01:24]}  gxf5 {[%clk 0:00:27]} 14. Rxf5 {[%clk 0:01:23]}  O-O-O {[%clk 0:00:25]} 15. Bg5 {[%clk 0:01:16]}  Qe6 {[%clk 0:00:22]} 16. Qf1 {[%clk 0:01:15]}  Nd7 {[%clk 0:00:19]} 17. Bxd8 {[%clk 0:01:14]}  Rxd8 {[%clk 0:00:18]} 18. Nd5 {[%clk 0:01:00]}  Bh6 {[%clk 0:00:15]} 19. Nec3 {[%clk 0:00:59]}  Qg6 {[%clk 0:00:09]} 20. Ne7+ {[%clk 0:00:56]} 1-0


[Site "https://www.chess.com"]

[Event "Titled Tuesday Blitz June 6 Late 2023"]
[White "Golubev, Mikhail"]
[Black "Shapiro, Daniel"]
[WhiteFideId "14100983"]
[BlackFideId "2001780"]
[WhiteElo "2374"]
[BlackElo "2362"]
[Result "1-0"]
[Round "2"]
[TimeControl "180+2"]
[Date "2023.06.07"]
[WhiteClock "0:00:09"]
[BlackClock "0:00:01"]
[Board "130"]

1. e4 {[%clk 0:03:00]}  e5 {[%clk 0:02:52]} 2. Nf3 {[%clk 0:02:59]}  Nc6 {[%clk 0:02:52]} 3. Bc4 {[%clk 0:02:57]}  Be7 {[%clk 0:02:51]} 4. d4 {[%clk 0:02:51]}  d6 {[%clk 0:02:51]} 5. Nc3 {[%clk 0:02:13]}  Nf6 {[%clk 0:02:50]} 6. O-O {[%clk 0:02:13]}  Bg4 {[%clk 0:02:43]} 7. dxe5 {[%clk 0:02:09]}  dxe5 {[%clk 0:02:38]} 8. Be3 {[%clk 0:01:46]}  a6 {[%clk 0:02:23]} 9. h3 {[%clk 0:01:43]}  Bh5 {[%clk 0:02:19]} 10. Be2 {[%clk 0:01:19]}  Bg6 {[%clk 0:02:12]} 11. Nh4 {[%clk 0:01:04]}  Bxe4 {[%clk 0:01:47]} 12. Nxe4 {[%clk 0:01:03]}  Nxe4 {[%clk 0:01:45]} 13. Nf5 {[%clk 0:01:02]}  Qxd1 {[%clk 0:01:18]} 14. Raxd1 {[%clk 0:01:00]}  Bf6 {[%clk 0:00:42]} 15. Bf3 {[%clk 0:00:55]}  Nd6 {[%clk 0:00:29]} 16. Nxd6+ {[%clk 0:00:49]}  cxd6 {[%clk 0:00:30]} 17. Rxd6 {[%clk 0:00:48]}  Rc8 {[%clk 0:00:25]} 18. Bxc6+ {[%clk 0:00:37]}  Rxc6 {[%clk 0:00:20]} 19. Rxc6 {[%clk 0:00:37]}  bxc6 {[%clk 0:00:21]} 20. Rd1 {[%clk 0:00:38]}  O-O {[%clk 0:00:15]} 21. b3 {[%clk 0:00:35]}  h6 {[%clk 0:00:15]} 22. Kf1 {[%clk 0:00:34]}  Rc8 {[%clk 0:00:13]} 23. Ke2 {[%clk 0:00:32]}  Kf8 {[%clk 0:00:13]} 24. Rd7 {[%clk 0:00:30]}  Rd8 {[%clk 0:00:07]} 25. Ra7 {[%clk 0:00:28]}  Rc8 {[%clk 0:00:05]} 26. Bc5+ {[%clk 0:00:26]}  Ke8 {[%clk 0:00:05]} 27. Rxa6 {[%clk 0:00:27]}  Kd7 {[%clk 0:00:05]} 28. a4 {[%clk 0:00:23]}  Ke6 {[%clk 0:00:05]} 29. c4 {[%clk 0:00:22]}  e4 {[%clk 0:00:05]} 30. Rb6 {[%clk 0:00:20]}  Be5 {[%clk 0:00:04]} 31. Rb7 {[%clk 0:00:19]}  f5 {[%clk 0:00:04]} 32. f3 {[%clk 0:00:17]}  exf3+ {[%clk 0:00:03]} 33. gxf3 {[%clk 0:00:16]}  g5 {[%clk 0:00:04]} 34. b4 {[%clk 0:00:16]}  Bc3 {[%clk 0:00:04]} 35. a5 {[%clk 0:00:15]}  Rd8 {[%clk 0:00:03]} 36. a6 {[%clk 0:00:14]}  Rd2+ {[%clk 0:00:03]} 37. Kf1 {[%clk 0:00:14]}  Ra2 {[%clk 0:00:03]} 38. a7 {[%clk 0:00:13]}  f4 {[%clk 0:00:03]} 39. Rb8 {[%clk 0:00:12]}  Bxb4 {[%clk 0:00:01]} 40. Rxb4 {[%clk 0:00:09]} 1-0


[Site "https://www.chess.com"]

[Event "Titled Tuesday Blitz June 6 Late 2023"]
[White "Graif, William"]
[Black "Prieto Aranguren, Alain"]
[WhiteFideId "2609835"]
[BlackFideId "2268906"]
[WhiteElo "2201"]
[BlackElo "2209"]
[Result "0-1"]
[Round "2"]
[TimeControl "180+2"]
[Date "2023.06.07"]
[WhiteClock "0:00:18"]
[BlackClock "0:00:35"]
[Board "134"]

1. e4 {[%clk 0:02:59]}  c6 {[%clk 0:02:59]} 2. d4 {[%clk 0:02:56]}  d5 {[%clk 0:02:58]} 3. Nc3 {[%clk 0:02:51]}  dxe4 {[%clk 0:02:55]} 4. Bc4 {[%clk 0:02:50]}  Nf6 {[%clk 0:02:49]} 5. f3 {[%clk 0:02:50]}  Bf5 {[%clk 0:02:33]} 6. g4 {[%clk 0:02:43]}  Bg6 {[%clk 0:02:29]} 7. g5 {[%clk 0:02:38]}  Nd5 {[%clk 0:02:25]} 8. Nxe4 {[%clk 0:02:28]}  e6 {[%clk 0:02:21]} 9. Ne2 {[%clk 0:02:09]}  Be7 {[%clk 0:02:16]} 10. h4 {[%clk 0:01:57]}  Nd7 {[%clk 0:02:06]} 11. Bb3 {[%clk 0:01:55]}  a5 {[%clk 0:01:48]} 12. c4 {[%clk 0:01:46]}  N5b6 {[%clk 0:01:46]} 13. c5 {[%clk 0:01:29]}  Nd5 {[%clk 0:01:44]} 14. Nf4 {[%clk 0:01:22]}  Qc7 {[%clk 0:01:32]} 15. Nxd5 {[%clk 0:01:11]}  exd5 {[%clk 0:01:29]} 16. Nf2 {[%clk 0:01:11]}  O-O-O {[%clk 0:01:16]} 17. Be3 {[%clk 0:01:07]}  Rde8 {[%clk 0:01:16]} 18. Qd2 {[%clk 0:01:03]}  Qg3 {[%clk 0:01:09]} 19. O-O-O {[%clk 0:00:52]}  Qxf3 {[%clk 0:01:05]} 20. h5 {[%clk 0:00:35]}  Bf5 {[%clk 0:00:54]} 21. Rde1 {[%clk 0:00:24]}  Bd8 {[%clk 0:00:38]} 22. Bd1 {[%clk 0:00:19]}  Qg3 {[%clk 0:00:38]} 23. Bf4 {[%clk 0:00:19]}  Qg2 {[%clk 0:00:36]} 24. Qxa5 {[%clk 0:00:18]}  Bxa5 {[%clk 0:00:35]} 0-1


[Site "https://www.chess.com"]

[Event "Titled Tuesday Blitz June 6 Late 2023"]
[White "Campos, Maria Jose"]
[Black "Janaszak, Dawid"]
[WhiteFideId "146803"]
[BlackFideId "1119206"]
[WhiteElo "2170"]
[BlackElo "2220"]
[Result "0-1"]
[Round "2"]
[TimeControl "180+2"]
[Date "2023.06.07"]
[WhiteClock "0:00:08"]
[BlackClock "0:00:17"]
[Board "135"]

1. c4 {[%clk 0:02:57]}  e6 {[%clk 0:03:00]} 2. g3 {[%clk 0:02:57]}  d5 {[%clk 0:03:00]} 3. Nf3 {[%clk 0:02:58]}  Nf6 {[%clk 0:03:01]} 4. Bg2 {[%clk 0:02:58]}  c5 {[%clk 0:03:02]} 5. O-O {[%clk 0:02:58]}  Nc6 {[%clk 0:03:02]} 6. b3 {[%clk 0:02:58]}  Be7 {[%clk 0:03:00]} 7. e3 {[%clk 0:02:57]}  O-O {[%clk 0:03:00]} 8. Bb2 {[%clk 0:02:57]}  d4 {[%clk 0:03:00]} 9. exd4 {[%clk 0:02:58]}  cxd4 {[%clk 0:03:01]} 10. Re1 {[%clk 0:02:58]}  a5 {[%clk 0:02:56]} 11. Ne5 {[%clk 0:02:57]}  Nxe5 {[%clk 0:02:49]} 12. Rxe5 {[%clk 0:02:57]}  Bd6 {[%clk 0:02:49]} 13. Rb5 {[%clk 0:02:53]}  e5 {[%clk 0:02:41]} 14. Bxb7 {[%clk 0:02:44]}  Rb8 {[%clk 0:02:42]} 15. Bg2 {[%clk 0:02:35]}  Rxb5 {[%clk 0:02:42]} 16. cxb5 {[%clk 0:02:36]}  Bg4 {[%clk 0:02:37]} 17. Qc2 {[%clk 0:02:34]}  e4 {[%clk 0:02:30]} 18. Bxd4 {[%clk 0:02:27]}  Bxg3 {[%clk 0:02:30]} 19. hxg3 {[%clk 0:02:17]}  Qxd4 {[%clk 0:02:29]} 20. Nc3 {[%clk 0:02:14]}  Bf3 {[%clk 0:02:22]} 21. Re1 {[%clk 0:02:11]}  Ng4 {[%clk 0:02:20]} 22. Rf1 {[%clk 0:01:50]}  Ne5 {[%clk 0:02:20]} 23. Nxe4 {[%clk 0:01:44]}  Be2 {[%clk 0:02:07]} 24. Re1 {[%clk 0:01:33]}  Bxb5 {[%clk 0:01:08]} 25. Ng5 {[%clk 0:01:22]}  Nd3 {[%clk 0:00:58]} 26. Re3 {[%clk 0:01:16]}  h6 {[%clk 0:00:51]} 27. Nf3 {[%clk 0:01:11]}  Qa1+ {[%clk 0:00:51]} 28. Kh2 {[%clk 0:01:09]}  Nxf2 {[%clk 0:00:50]} 29. Qc5 {[%clk 0:01:07]}  Ng4+ {[%clk 0:00:49]} 30. Kh3 {[%clk 0:01:05]}  Nxe3 {[%clk 0:00:49]} 31. dxe3 {[%clk 0:01:05]}  Bd7+ {[%clk 0:00:49]} 32. g4 {[%clk 0:01:05]}  Qxa2 {[%clk 0:00:44]} 33. Ne5 {[%clk 0:01:03]}  Be6 {[%clk 0:00:41]} 34. Nc6 {[%clk 0:00:55]}  Qxb3 {[%clk 0:00:33]} 35. Kg3 {[%clk 0:00:53]}  Re8 {[%clk 0:00:29]} 36. Ne5 {[%clk 0:00:46]}  a4 {[%clk 0:00:25]} 37. Be4 {[%clk 0:00:43]}  a3 {[%clk 0:00:23]} 38. Bc2 {[%clk 0:00:37]}  Qd5 {[%clk 0:00:23]} 39. Qc3 {[%clk 0:00:16]}  a2 {[%clk 0:00:23]} 40. g5 {[%clk 0:00:10]}  Ra8 {[%clk 0:00:22]} 41. gxh6 {[%clk 0:00:10]}  a1=Q {[%clk 0:00:20]} 42. h7+ {[%clk 0:00:10]}  Kh8 {[%clk 0:00:20]} 43. Nxf7+ {[%clk 0:00:08]}  Bxf7 {[%clk 0:00:19]} 44. Qd3 {[%clk 0:00:08]}  Qg1+ {[%clk 0:00:18]} 45. Kf4 {[%clk 0:00:08]}  Qf2+ {[%clk 0:00:18]} 46. Kg4 {[%clk 0:00:08]}  Be6+ {[%clk 0:00:17]} 0-1


[Site "https://www.chess.com"]

[Event "Titled Tuesday Blitz June 6 Late 2023"]
[White "SergioMoralesG"]
[Black "Gerbelli Neto, Eduardo"]
[BlackFideId "2103281"]
[WhiteElo "2513"]
[BlackElo "2178"]
[Result "0-1"]
[Round "2"]
[TimeControl "180+2"]
[Date "2023.06.07"]
[WhiteClock "0:00:01"]
[BlackClock "0:00:26"]
[Board "137"]

1. e4 {[%clk 0:03:00]}  e5 {[%clk 0:03:00]} 2. Nf3 {[%clk 0:03:00]}  Nc6 {[%clk 0:03:00]} 3. Bb5 {[%clk 0:03:00]}  a6 {[%clk 0:02:59]} 4. Ba4 {[%clk 0:03:01]}  Nf6 {[%clk 0:02:58]} 5. O-O {[%clk 0:03:01]}  Be7 {[%clk 0:02:58]} 6. Re1 {[%clk 0:03:00]}  b5 {[%clk 0:02:58]} 7. Bb3 {[%clk 0:03:00]}  O-O {[%clk 0:02:58]} 8. a4 {[%clk 0:02:59]}  Rb8 {[%clk 0:02:56]} 9. axb5 {[%clk 0:02:57]}  axb5 {[%clk 0:02:56]} 10. d4 {[%clk 0:02:52]}  Nxd4 {[%clk 0:02:45]} 11. Nxd4 {[%clk 0:02:46]}  exd4 {[%clk 0:02:46]} 12. e5 {[%clk 0:02:46]}  Ne8 {[%clk 0:02:46]} 13. Qxd4 {[%clk 0:02:32]}  c5 {[%clk 0:02:45]} 14. Qe3 {[%clk 0:02:20]}  c4 {[%clk 0:02:43]} 15. Ba2 {[%clk 0:02:20]}  d5 {[%clk 0:02:30]} 16. exd6 {[%clk 0:02:12]}  Bxd6 {[%clk 0:02:29]} 17. b3 {[%clk 0:02:11]}  Qf6 {[%clk 0:02:14]} 18. Nc3 {[%clk 0:02:10]}  b4 {[%clk 0:02:00]} 19. Bb2 {[%clk 0:01:20]}  bxc3 {[%clk 0:01:44]} 20. Bxc3 {[%clk 0:01:19]}  Qg6 {[%clk 0:01:40]} 21. bxc4 {[%clk 0:01:13]}  Nf6 {[%clk 0:01:19]} 22. c5 {[%clk 0:01:10]}  Bc7 {[%clk 0:01:14]} 23. h3 {[%clk 0:01:00]}  Bb7 {[%clk 0:01:11]} 24. f3 {[%clk 0:00:52]}  Qg3 {[%clk 0:01:00]} 25. Be5 {[%clk 0:00:49]}  Bxe5 {[%clk 0:00:59]} 26. Qxe5 {[%clk 0:00:49]}  Qxe5 {[%clk 0:00:56]} 27. Rxe5 {[%clk 0:00:50]}  Rfc8 {[%clk 0:00:56]} 28. Rd1 {[%clk 0:00:38]}  Bc6 {[%clk 0:00:50]} 29. Rd6 {[%clk 0:00:33]}  Kf8 {[%clk 0:00:47]} 30. Bb3 {[%clk 0:00:30]}  Rb7 {[%clk 0:00:37]} 31. Kf2 {[%clk 0:00:29]}  Re7 {[%clk 0:00:37]} 32. Rxe7 {[%clk 0:00:19]}  Kxe7 {[%clk 0:00:38]} 33. g4 {[%clk 0:00:17]}  Nd7 {[%clk 0:00:38]} 34. Rd4 {[%clk 0:00:09]}  Nxc5 {[%clk 0:00:37]} 35. Bc4 {[%clk 0:00:08]}  Ne6 {[%clk 0:00:36]} 36. Rd2 {[%clk 0:00:07]}  Bd7 {[%clk 0:00:33]} 37. Bb3 {[%clk 0:00:06]}  Nc5 {[%clk 0:00:33]} 38. Ke3 {[%clk 0:00:04]}  Nxb3 {[%clk 0:00:33]} 39. cxb3 {[%clk 0:00:05]}  Rc3+ {[%clk 0:00:33]} 40. Kf4 {[%clk 0:00:05]}  Rxb3 {[%clk 0:00:33]} 41. Re2+ {[%clk 0:00:06]}  Be6 {[%clk 0:00:33]} 42. Ke4 {[%clk 0:00:04]}  Kf6 {[%clk 0:00:30]} 43. f4 {[%clk 0:00:04]}  g6 {[%clk 0:00:30]} 44. g5+ {[%clk 0:00:04]}  Ke7 {[%clk 0:00:30]} 45. h4 {[%clk 0:00:05]}  Rh3 {[%clk 0:00:28]} 46. Ra2 {[%clk 0:00:04]}  Rxh4 {[%clk 0:00:28]} 47. Ra7+ {[%clk 0:00:04]}  Kf8 {[%clk 0:00:28]} 48. Ke5 {[%clk 0:00:04]}  Kg7 {[%clk 0:00:29]} 49. Ra6 {[%clk 0:00:03]}  Rh1 {[%clk 0:00:29]} 50. Ra7 {[%clk 0:00:03]}  Re1+ {[%clk 0:00:29]} 51. Kd4 {[%clk 0:00:03]}  h5 {[%clk 0:00:29]} 52. gxh6+ {[%clk 0:00:02]}  Kxh6 {[%clk 0:00:30]} 53. Ra8 {[%clk 0:00:03]}  Kh5 {[%clk 0:00:30]} 54. Kd3 {[%clk 0:00:02]}  Kg4 {[%clk 0:00:30]} 55. Kd2 {[%clk 0:00:02]}  Re4 {[%clk 0:00:29]} 56. Kd3 {[%clk 0:00:02]}  Rxf4 {[%clk 0:00:29]} 57. Ke3 {[%clk 0:00:02]}  g5 {[%clk 0:00:27]} 58. Rg8 {[%clk 0:00:01]}  f5 {[%clk 0:00:26]} 59. Rg7 {[%clk 0:00:01]}  Bd5 {[%clk 0:00:26]} 60. Rg6 {[%clk 0:00:01]}  Be4 {[%clk 0:00:26]} 61. Ke2 {[%clk 0:00:01]}  Rf3 {[%clk 0:00:26]} 62. Rg8 {[%clk 0:00:01]}  Kf4 {[%clk 0:00:26]} 63. Rg7 {[%clk 0:00:01]}  g4 {[%clk 0:00:27]} 64. Rg8 {[%clk 0:00:02]}  Kg3 {[%clk 0:00:28]} 65. Rg7 {[%clk 0:00:02]}  Rf2+ {[%clk 0:00:28]} 66. Ke3 {[%clk 0:00:02]}  Bd5 {[%clk 0:00:27]} 67. Rg8 {[%clk 0:00:02]}  f4+ {[%clk 0:00:27]} 68. Kd4 {[%clk 0:00:01]}  Bg2 {[%clk 0:00:26]} 69. Rg7 {[%clk 0:00:01]}  Re2 {[%clk 0:00:26]} 0-1


[Site "https://www.chess.com"]

[Event "Titled Tuesday Blitz June 6 Late 2023"]
[White "Mayeregger, Arnold"]
[Black "Olsson, William"]
[WhiteFideId "3705226"]
[BlackFideId "1741721"]
[WhiteElo "2038"]
[BlackElo "2197"]
[Result "0-1"]
[Round "2"]
[TimeControl "180+2"]
[Date "2023.06.07"]
[WhiteClock "0:01:12"]
[BlackClock "0:01:33"]
[Board "138"]

1. e4 {[%clk 0:03:00]}  c5 {[%clk 0:02:57]} 2. Nf3 {[%clk 0:03:00]}  d6 {[%clk 0:02:57]} 3. d4 {[%clk 0:03:00]}  cxd4 {[%clk 0:02:58]} 4. Nxd4 {[%clk 0:03:01]}  Nf6 {[%clk 0:02:59]} 5. Nc3 {[%clk 0:03:01]}  g6 {[%clk 0:03:00]} 6. g3 {[%clk 0:03:00]}  Bg7 {[%clk 0:03:00]} 7. Bg2 {[%clk 0:03:00]}  O-O {[%clk 0:03:01]} 8. O-O {[%clk 0:03:00]}  Nc6 {[%clk 0:03:01]} 9. Nde2 {[%clk 0:03:01]}  Be6 {[%clk 0:02:57]} 10. h3 {[%clk 0:02:56]}  Rc8 {[%clk 0:02:55]} 11. Rb1 {[%clk 0:02:56]}  a6 {[%clk 0:02:54]} 12. b3 {[%clk 0:02:56]}  b5 {[%clk 0:02:54]} 13. Nf4 {[%clk 0:02:53]}  Nb4 {[%clk 0:02:37]} 14. Bb2 {[%clk 0:02:42]}  Nd7 {[%clk 0:02:23]} 15. Qd2 {[%clk 0:02:30]}  Nxc2 {[%clk 0:02:08]} 16. Qxc2 {[%clk 0:02:25]}  b4 {[%clk 0:02:08]} 17. Nxe6 {[%clk 0:02:16]}  fxe6 {[%clk 0:02:09]} 18. Qd3 {[%clk 0:02:08]}  bxc3 {[%clk 0:02:08]} 19. Ba3 {[%clk 0:01:55]}  Qa5 {[%clk 0:02:03]} 20. Bc1 {[%clk 0:01:37]}  c2 {[%clk 0:01:52]} 21. Rb2 {[%clk 0:01:33]}  Ne5 {[%clk 0:01:43]} 22. Qe2 {[%clk 0:01:23]}  Qc3 {[%clk 0:01:40]} 23. a4 {[%clk 0:01:12]}  Nd3 {[%clk 0:01:38]} 24. Ra2 {[%clk 0:01:12]}  Qxb3 {[%clk 0:01:33]} 25. Ra3 {[%clk 0:01:12]}  Nxc1 {[%clk 0:01:33]} 0-1


[Site "https://www.chess.com"]

[Event "Titled Tuesday Blitz June 6 Late 2023"]
[White "Krzywda, Andrzej"]
[Black "Jaskolka, Tomasz"]
[WhiteFideId "1114565"]
[BlackFideId "1170791"]
[WhiteElo "2138"]
[BlackElo "2155"]
[Result "0-1"]
[Round "2"]
[TimeControl "180+2"]
[Date "2023.06.07"]
[WhiteClock "0:00:10"]
[BlackClock "0:00:38"]
[Board "139"]

1. e4 {[%clk 0:03:00]}  d5 {[%clk 0:03:00]} 2. d3 {[%clk 0:02:56]}  e5 {[%clk 0:02:53]} 3. Nd2 {[%clk 0:02:54]}  Nf6 {[%clk 0:02:51]} 4. Ngf3 {[%clk 0:02:54]}  Nc6 {[%clk 0:02:52]} 5. c3 {[%clk 0:02:52]}  a5 {[%clk 0:02:48]} 6. Be2 {[%clk 0:02:50]}  Bc5 {[%clk 0:02:48]} 7. O-O {[%clk 0:02:50]}  O-O {[%clk 0:02:48]} 8. b3 {[%clk 0:02:47]}  h6 {[%clk 0:02:42]} 9. a3 {[%clk 0:02:46]}  Be6 {[%clk 0:02:40]} 10. Bb2 {[%clk 0:02:46]}  Qd7 {[%clk 0:02:31]} 11. b4 {[%clk 0:02:45]}  Bd6 {[%clk 0:02:25]} 12. exd5 {[%clk 0:02:35]}  Nxd5 {[%clk 0:02:22]} 13. c4 {[%clk 0:02:33]}  Nf4 {[%clk 0:02:21]} 14. b5 {[%clk 0:02:31]}  Nd4 {[%clk 0:02:17]} 15. Nxd4 {[%clk 0:02:22]}  exd4 {[%clk 0:02:16]} 16. Ne4 {[%clk 0:02:13]}  Rfe8 {[%clk 0:02:05]} 17. Bf3 {[%clk 0:02:09]}  Rab8 {[%clk 0:01:56]} 18. Qd2 {[%clk 0:01:55]}  Be5 {[%clk 0:01:48]} 19. Nc5 {[%clk 0:01:45]}  Qe7 {[%clk 0:01:48]} 20. Nxb7 {[%clk 0:01:43]}  Qg5 {[%clk 0:01:45]} 21. Bc1 {[%clk 0:01:35]}  Bh3 {[%clk 0:01:19]} 22. g3 {[%clk 0:01:16]}  Bxf1 {[%clk 0:01:18]} 23. Kxf1 {[%clk 0:01:17]}  Ne6 {[%clk 0:00:57]} 24. Qxg5 {[%clk 0:01:11]}  hxg5 {[%clk 0:00:57]} 25. Nxa5 {[%clk 0:01:08]}  Nc5 {[%clk 0:00:56]} 26. Be2 {[%clk 0:00:58]}  Ra8 {[%clk 0:00:54]} 27. Nc6 {[%clk 0:00:57]}  Nb3 {[%clk 0:00:49]} 28. Rb1 {[%clk 0:00:54]}  Nxc1 {[%clk 0:00:48]} 29. Rxc1 {[%clk 0:00:54]}  Rxa3 {[%clk 0:00:48]} 30. c5 {[%clk 0:00:30]}  Rb3 {[%clk 0:00:44]} 31. b6 {[%clk 0:00:18]}  cxb6 {[%clk 0:00:39]} 32. Nxe5 {[%clk 0:00:18]}  Rxe5 {[%clk 0:00:38]} 33. c6 {[%clk 0:00:19]}  Rc3 {[%clk 0:00:36]} 34. Rxc3 {[%clk 0:00:10]}  dxc3 {[%clk 0:00:36]} 35. d4 {[%clk 0:00:10]}  c2 {[%clk 0:00:36]} 36. dxe5 {[%clk 0:00:10]}  c1=Q+ {[%clk 0:00:37]} 37. Kg2 {[%clk 0:00:10]}  Qxc6+ {[%clk 0:00:38]} 0-1


[Site "https://www.chess.com"]

[Event "Titled Tuesday Blitz June 6 Late 2023"]
[White "Pace, Christopher"]
[Black "Boskovic, Drasko"]
[WhiteFideId "2610167"]
[BlackFideId "927368"]
[WhiteElo "2314"]
[BlackElo "2384"]
[Result "1-0"]
[Round "2"]
[TimeControl "180+2"]
[Date "2023.06.07"]
[WhiteClock "0:00:10"]
[BlackClock "0:02:15"]
[Board "141"]

1. e4 {[%clk 0:03:00]}  c5 {[%clk 0:02:59]} 2. Nf3 {[%clk 0:02:59]}  Nc6 {[%clk 0:02:59]} 3. d4 {[%clk 0:02:57]}  cxd4 {[%clk 0:03:00]} 4. Nxd4 {[%clk 0:02:57]}  Nf6 {[%clk 0:03:01]} 5. Nc3 {[%clk 0:02:52]}  h5 {[%clk 0:03:02]} 6. Nxc6 {[%clk 0:02:46]}  bxc6 {[%clk 0:03:01]} 7. e5 {[%clk 0:02:39]}  Ng4 {[%clk 0:03:01]} 8. Qe2 {[%clk 0:02:07]}  Qc7 {[%clk 0:02:58]} 9. Bf4 {[%clk 0:02:00]}  f6 {[%clk 0:02:58]} 10. O-O-O {[%clk 0:01:45]}  Nxe5 {[%clk 0:02:55]} 11. Kb1 {[%clk 0:01:33]}  d5 {[%clk 0:02:55]} 12. Re1 {[%clk 0:01:23]}  g5 {[%clk 0:02:32]} 13. Bxe5 {[%clk 0:01:10]}  Qxe5 {[%clk 0:02:33]} 14. Qxe5 {[%clk 0:01:10]}  fxe5 {[%clk 0:02:34]} 15. Rxe5 {[%clk 0:01:11]}  Bg7 {[%clk 0:02:34]} 16. Rxg5 {[%clk 0:01:11]}  Bf6 {[%clk 0:02:35]} 17. Rg3 {[%clk 0:01:07]}  h4 {[%clk 0:02:35]} 18. Rd3 {[%clk 0:00:58]}  Bf5 {[%clk 0:02:35]} 19. Rd1 {[%clk 0:00:57]}  e5 {[%clk 0:02:36]} 20. f3 {[%clk 0:00:44]}  Rg8 {[%clk 0:02:34]} 21. Rg1 {[%clk 0:00:36]}  O-O-O {[%clk 0:02:34]} 22. Bd3 {[%clk 0:00:32]}  Be6 {[%clk 0:02:32]} 23. Na4 {[%clk 0:00:28]}  Kc7 {[%clk 0:02:31]} 24. Nc5 {[%clk 0:00:28]}  Bc8 {[%clk 0:02:31]} 25. g4 {[%clk 0:00:22]}  Bg5 {[%clk 0:02:30]} 26. Rge1 {[%clk 0:00:18]}  Kd6 {[%clk 0:02:28]} 27. b4 {[%clk 0:00:14]}  Rgf8 {[%clk 0:02:29]} 28. Bf1 {[%clk 0:00:05]}  Rf4 {[%clk 0:02:28]} 29. Ne4+ {[%clk 0:00:05]}  Rxe4 {[%clk 0:02:27]} 30. fxe4 {[%clk 0:00:06]}  Bxg4 {[%clk 0:02:27]} 31. Rd3 {[%clk 0:00:06]}  d4 {[%clk 0:02:27]} 32. c3 {[%clk 0:00:06]}  c5 {[%clk 0:02:26]} 33. bxc5+ {[%clk 0:00:06]}  Kxc5 {[%clk 0:02:27]} 34. cxd4+ {[%clk 0:00:07]}  exd4 {[%clk 0:02:28]} 35. Kb2 {[%clk 0:00:05]}  Rb8+ {[%clk 0:02:28]} 36. Rb3 {[%clk 0:00:06]}  Rf8 {[%clk 0:02:28]} 37. Bd3 {[%clk 0:00:06]}  Rf2+ {[%clk 0:02:28]} 38. Ka3 {[%clk 0:00:06]}  Be7 {[%clk 0:02:28]} 39. Rb5+ {[%clk 0:00:07]}  Kc6+ {[%clk 0:02:28]} 40. Ka4 {[%clk 0:00:08]}  Rxa2+ {[%clk 0:02:28]} 41. Kb3 {[%clk 0:00:07]}  Ra3+ {[%clk 0:02:29]} 42. Kc4 {[%clk 0:00:08]}  Be6+ {[%clk 0:02:24]} 43. Kxd4 {[%clk 0:00:08]}  Ra4+ {[%clk 0:02:23]} 44. Ke3 {[%clk 0:00:08]}  a6 {[%clk 0:02:22]} 45. Re5 {[%clk 0:00:07]}  Bc5+ {[%clk 0:02:21]} 46. Kf3 {[%clk 0:00:07]}  Rd4 {[%clk 0:02:15]} 47. Rxe6+ {[%clk 0:00:07]}  Kd7 {[%clk 0:02:16]} 48. Rxa6 {[%clk 0:00:06]}  Rxd3+ {[%clk 0:02:17]} 49. Kg4 {[%clk 0:00:07]}  h3 {[%clk 0:02:16]} 50. e5 {[%clk 0:00:07]}  Bf2 {[%clk 0:02:15]} 51. e6+ {[%clk 0:00:07]}  Ke7 {[%clk 0:02:16]} 52. Re2 {[%clk 0:00:08]}  Bc5 {[%clk 0:02:15]} 53. Kf5 {[%clk 0:00:08]}  Rd5+ {[%clk 0:02:15]} 54. Kg4 {[%clk 0:00:08]}  Rd3 {[%clk 0:02:15]} 55. Kf5 {[%clk 0:00:08]}  Rf3+ {[%clk 0:02:15]} 56. Kg4 {[%clk 0:00:08]}  Rb3 {[%clk 0:02:13]} 57. Rc6 {[%clk 0:00:09]}  Bd6 {[%clk 0:02:13]} 58. Rd2 {[%clk 0:00:09]}  Rb4+ {[%clk 0:02:13]} 59. Kxh3 {[%clk 0:00:09]}  Rb3+ {[%clk 0:02:13]} 60. Kg2 {[%clk 0:00:10]}  Be5 {[%clk 0:02:14]} 61. Rd7+ {[%clk 0:00:10]}  Kf6 {[%clk 0:02:15]} 62. e7+ {[%clk 0:00:10]}  Kf7 {[%clk 0:02:15]} 63. Rc8 {[%clk 0:00:10]}  Rb2+ {[%clk 0:02:15]} 64. Kf3 {[%clk 0:00:10]}  Rb3+ {[%clk 0:02:15]} 65. Ke2 {[%clk 0:00:10]} 1-0


[Site "https://www.chess.com"]